{"text_format":"3","workbook":"xlsx","n_sheets":4,"sheets":["Početak","PARAMETRI PROJEKTA","DETALJI O PROJEKTU","UKUPNI ZBROJEVI ZA PROJEKT"],"not_rendered":{"charts":2,"defined_names":3,"pivot_tables":1},"read":"whole","date_system":"1900"}

{"sheet":"Početak","index":0,"n_rows":8,"n_cols":2,"rows_kept":8}
[null,"O OVOM PREDLOŠKU"]
[]
[null,"Pomoću ove radne knjige pratite parametri projekta, detalji o projektu i ukupni zbrojevi za projekt tijekom Planiranje projekata za odvjetničke urede."]
[null,"Na radnom listu Parametri projekta ispunite polje Naziv tvrtke i ono će se automatski ažurirati na svim drugim radnim listovima."]
[null,"Na radni list Parametri projekta unesite podatke da biste ažurirali stupčaste grafikone, a isto učinite i na radnom listu Detalji o projektu. Automatski se ažurira i zaokretna tablica na radnom listu Ukupni zbrojevi za projekt."]
[null,"Napomena:  "]
[null,"dodatne su upute navedene u stupcu A na svakom radnom listu. Ovaj je tekst namjerno skriven. Da biste uklonili tekst, odaberite stupac A, a zatim odaberite IZBRIŠI. Da biste otkrili tekst, odaberite stupac A, a zatim promijenite boju fonta."]
[null,"Da biste saznali više o tablicama na radnim listovima, pritisnite SHIFT i zatim F10 na tablici pa odaberite mogućnost TABLICA i potom ZAMJENSKI TEKST. Za zaokretnu tablicu na radnom listu Ukupni zbrojevi za projekt pritisnite SHIFT pa F10 unutar tablice, odaberite MOGUĆNOSTI ZAOKRETNE TABLICE pa odaberite karticu ZAMJENSKI TEKST."]

{"sheet":"PARAMETRI PROJEKTA","index":1,"n_rows":19,"n_cols":9,"rows_kept":19}
["Na ovom radnom listu stvorite parametri projekta. U ćeliju zdesna unesite naziv tvrtke. Korisne upute nalaze se u ćelijama u tom stupcu.","Naziv tvrtke"]
["U ćeliji zdesna nalazi se naslov ovog radnog lista.","Planiranje projekata za odvjetničke urede"]
["Poruka o povjerljivosti podataka nalazi se u ćeliji s desne strane.",{"$f":"B1&\" – povjerljivo\"","v":"Naziv tvrtke – povjerljivo"}]
["U ćeliji zdesna nalazi se savjet.","Osjenčane se ćelije izračunavaju automatski. U njih ne morate ništa unositi."]
["Unesite pojedinosti u tablicu Parametri počevši s ćelijom s desne strane. Sljedeća je uputa u ćeliji A12.","VRSTA PROJEKTA","PARTNER ZA OPĆE PRAVNE POSLOVE","PRAVNIK ZA KORPORATIVNO PRAVO","BRANITELJ PARNIČAR","PRAVNIK ZA INTELEKTUALNO VLASNIŠTVO","PRAVNIK ZA STEČAJEVE","ADMINISTRATORI","Zbroj"]
[null,"Osnivanje tvrtke",{"v":0.1,"d":"10%"},{"v":0.4,"d":"40%"},{"v":0,"d":"0%"},{"v":0,"d":"0%"},{"v":0,"d":"0%"},{"v":0.5,"d":"50%"},{"$f":"SUM(Parametri[[#This Row],[PARTNER ZA OPĆE PRAVNE POSLOVE]:[ADMINISTRATORI]])","v":{"v":1,"d":"100%"}}]
[null,"Preuzimanje tvrtke",{"v":0.1,"d":"10%"},{"v":0.4,"d":"40%"},{"v":0,"d":"0%"},{"v":0.1,"d":"10%"},{"v":0,"d":"0%"},{"v":0.4,"d":"40%"},{"$f":"SUM(Parametri[[#This Row],[PARTNER ZA OPĆE PRAVNE POSLOVE]:[ADMINISTRATORI]])","v":{"v":1,"d":"100%"}}]
[null,"Obrana od odgovornosti za proizvod",{"v":0.2,"d":"20%"},{"v":0,"d":"0%"},{"v":0.5,"d":"50%"},{"v":0,"d":"0%"},{"v":0,"d":"0%"},{"v":0.3,"d":"30%"},{"$f":"SUM(Parametri[[#This Row],[PARTNER ZA OPĆE PRAVNE POSLOVE]:[ADMINISTRATORI]])","v":{"v":1,"d":"100%"}}]
[null,"Prijava patenta",{"v":0.1,"d":"10%"},{"v":0,"d":"0%"},{"v":0,"d":"0%"},{"v":0.6,"d":"60%"},{"v":0,"d":"0%"},{"v":0.3,"d":"30%"},{"$f":"SUM(Parametri[[#This Row],[PARTNER ZA OPĆE PRAVNE POSLOVE]:[ADMINISTRATORI]])","v":{"v":1,"d":"100%"}}]
[null,"Tužba zaposlenika",{"v":0.2,"d":"20%"},{"v":0.1,"d":"10%"},{"v":0.4,"d":"40%"},{"v":0,"d":"0%"},{"v":0,"d":"0%"},{"v":0.3,"d":"30%"},{"$f":"SUM(Parametri[[#This Row],[PARTNER ZA OPĆE PRAVNE POSLOVE]:[ADMINISTRATORI]])","v":{"v":1,"d":"100%"}}]
[null,"Stečaj",{"v":0.1,"d":"10%"},{"v":0.2,"d":"20%"},{"v":0,"d":"0%"},{"v":0,"d":"0%"},{"v":0.4,"d":"40%"},{"v":0.3,"d":"30%"},{"$f":"SUM(Parametri[[#This Row],[PARTNER ZA OPĆE PRAVNE POSLOVE]:[ADMINISTRATORI]])","v":{"v":1,"d":"100%"}}]
["U ćelije s desne strane od C12 do H12 unesite jedinstvena visina naknade. Sljedeća je uputa u ćeliji A14.","Jedinstvena visina naknade",{"v":350,"d":"350 kn"},{"v":250,"d":"250 kn"},{"v":300,"d":"300 kn"},{"v":275,"d":"275 kn"},{"v":225,"d":"225 kn"},{"v":125,"d":"125 kn"}]
[]
["Stupčasti grafikon koji prikazuje usporedbu između planirani i stvarni trošak nalazi se u ćeliji s desne strane, a stupčasti grafikon koji prikazuje usporedbu planirani i stvarni sati nalazi se u ćeliji F14."]
[null,null,"PARTNER ZA OPĆE PRAVNE POSLOVE","KORPORATIVNO PRAVO","BRANITELJ PARNIČAR","INTELEKTUALNOG VLASN.","STEČAJ","ADMINISTRATORI"]
[null,"PLANIRANI TROŠAK",{"$f":"SUBTOTAL(109,Detalji[PARTNER ZA OPĆE PRAVNE POSLOVE])","v":{"v":78750,"d":"78,750.00 kn"}},{"$f":"SUBTOTAL(109,Detalji[PRAVNIK ZA KORPORATIVNO PRAVO])","v":{"v":66250,"d":"66,250.00 kn"}},{"$f":"SUBTOTAL(109,Detalji[BRANITELJ PARNIČAR])","v":{"v":105000,"d":"105,000.00 kn"}},{"$f":"SUBTOTAL(109,Detalji[PRAVNIK ZA INTELEKTUALNO VLASNIŠTVO])","v":{"v":35750,"d":"35,750.00 kn"}},{"$f":"SUBTOTAL(109,Detalji[PRAVNIK ZA STEČAJEVE])","v":{"v":0,"d":"0.00 kn"}},{"$f":"SUBTOTAL(109,Detalji[ADMINISTRATORI])","v":{"v":66250,"d":"66,250.00 kn"}}]
[null,"STVARNI TROŠAK",{"$f":"SUBTOTAL(109,Detalji[PARTNER ZA OPĆE PRAVNE POSLOVE 2])","v":{"v":79275,"d":"79,275.00 kn"}},{"$f":"SUBTOTAL(109,Detalji[PRAVNIK ZA KORPORATIVNO PRAVO 2])","v":{"v":67375,"d":"67,375.00 kn"}},{"$f":"SUBTOTAL(109,Detalji[BRANITELJ PARNIČAR 2])","v":{"v":105600,"d":"105,600.00 kn"}},{"$f":"SUBTOTAL(109,Detalji[PRAVNIK ZA INTELEKTUALNO VLASNIŠTVO 2])","v":{"v":34650,"d":"34,650.00 kn"}},{"$f":"SUBTOTAL(109,Detalji[PRAVNIK ZA STEČAJEVE 2])","v":{"v":0,"d":"0.00 kn"}},{"$f":"SUBTOTAL(109,Detalji[ADMINISTRATORI 2])","v":{"v":67000,"d":"67,000.00 kn"}}]
[null,"PLANIRANI SATI",{"$f":"C16/$C$12","v":{"v":225,"d":"225.00"}},{"$f":"D16/$C$12","v":{"v":189.28571428571428,"d":"189.29"}},{"v":300,"d":"300.00"},{"v":102.14285714285714,"d":"102.14"},{"v":0,"d":"0.00"},{"v":189.28571428571428,"d":"189.29"}]
[null,"STVARNI SATI",{"$f":"C17/$C$12","v":{"v":226.5,"d":"226.50"}},{"$f":"D17/$C$12","v":{"v":192.5,"d":"192.50"}},{"$f":"E17/$C$12","v":{"v":301.7142857142857,"d":"301.71"}},{"$f":"F17/$C$12","v":{"v":99,"d":"99.00"}},{"$f":"G17/$C$12","v":{"v":0,"d":"0.00"}},{"$f":"H17/$C$12","v":{"v":191.42857142857142,"d":"191.43"}}]

{"sheet":"DETALJI O PROJEKTU","index":2,"n_rows":10,"n_cols":25,"rows_kept":10,"merged":[[1,24,8,28]]}
["Na ovom radnom listu stvorite detaljo o projektu. Naziv tvrtke automatski se ažurira u ćeliji zdesna. Korisne upute nalaze se u ćelijama u tom stupcu. Pomoću tipke sa strelicom prema dolje počnite s radom.",{"$f":"'PARAMETRI PROJEKTA'!B1","v":"Naziv tvrtke"}]
["Naslov tog radnog lista nalazi se u ćeliji s desno strane, a savjet s informacijama u ćeliji Y2.",{"$f":"'PARAMETRI PROJEKTA'!B2","v":"Planiranje projekata za odvjetničke urede"},{"$nulls":22},"INFORMACIJE:\nDa biste dodali redak, odaberite najdonju ćeliju u tijelu tablice (ne redak zbroja) pa pritisnite tablulator ili pritisnite SHIFT pa F10 u tablici ondje gdje želite umetnuti redak te odaberite Umetani | Reci tablice iznad/ispod.\nObavezno izbrišite sve neiskorištene retke jer bi se inače, s obzirom na to da se u zaokretnoj tablici UKUPNI ZBROJEVI ZA PROJEKT koriste sve ćelije tablice, dobili pogrešni rezultati."]
["Poruka o povjerljivosti podataka nalazi se u ćeliji s desne strane.",{"$f":"'PARAMETRI PROJEKTA'!B3","v":"Naziv tvrtke – povjerljivo"}]
["Unesite informacije u tablicu Detalji počevši s ćelijom s desne strane. Vrsta projekata u tablici Detalji s desne strane automatski se ažuriraju iz tablice Parametri na radnom listu Parametri projekta.","NAZIV PROJEKTA","VRSTA PROJEKTA","PROCIJENJENI POČETAK","PROCIJENJENI ZAVRŠETAK","STVARNI POČETAK","STVARNI ZAVRŠETAK","PROCIJENJENI RAD","STVARNI RAD","PROCIJENJENO TRAJANJE","STVARNO TRAJANJE","PARTNER ZA OPĆE PRAVNE POSLOVE","PRAVNIK ZA KORPORATIVNO PRAVO","BRANITELJ PARNIČAR","PRAVNIK ZA INTELEKTUALNO VLASNIŠTVO","PRAVNIK ZA STEČAJEVE","ADMINISTRATORI","PARTNER ZA OPĆE PRAVNE POSLOVE 2","PRAVNIK ZA KORPORATIVNO PRAVO 2","BRANITELJ PARNIČAR 2","PRAVNIK ZA INTELEKTUALNO VLASNIŠTVO 2","PRAVNIK ZA STEČAJEVE 2","ADMINISTRATORI 2"]
[null,"Projekt 1","Osnivanje tvrtke",{"$f":"TODAY()","v":"2019-02-19"},{"$f":"TODAY()+60","v":"2019-04-20"},{"$f":"TODAY()+10","v":"2019-03-01"},{"$f":"TODAY()+65","v":"2019-04-25"},200,220,{"$f":"DAYS360(Detalji[[#This Row],[PROCIJENJENI POČETAK]],Detalji[[#This Row],[PROCIJENJENI ZAVRŠETAK]],FALSE)","v":61},{"$f":"DAYS360(Detalji[[#This Row],[STVARNI POČETAK]],Detalji[[#This Row],[STVARNI ZAVRŠETAK]],FALSE)","v":54},{"$f":"INDEX(Parametri[],MATCH(Detalji[[#This Row],[VRSTA PROJEKTA]],Parametri[VRSTA PROJEKTA],0),MATCH(Detalji[[#Headers],[PARTNER ZA OPĆE PRAVNE POSLOVE]],Parametri[#Headers],0))*INDEX('PARAMETRI PROJEKTA'!$B$12:$H$12,1,MATCH(Detalji[[#Headers],[PARTNER ZA OPĆE PRAVNE POSLOVE]],Parametri[#Headers],0))*Detalji[[#This Row],[PROCIJENJENI RAD]]","v":{"v":7000,"d":"7,000.00 kn"}},{"$f":"INDEX(Parametri[],MATCH(Detalji[[#This Row],[VRSTA PROJEKTA]],Parametri[VRSTA PROJEKTA],0),MATCH(Detalji[[#Headers],[PRAVNIK ZA KORPORATIVNO PRAVO]],Parametri[#Headers],0))*INDEX('PARAMETRI PROJEKTA'!$B$12:$H$12,1,MATCH(Detalji[[#Headers],[PRAVNIK ZA KORPORATIVNO PRAVO]],Parametri[#Headers],0))*Detalji[[#This Row],[PROCIJENJENI RAD]]","v":{"v":20000,"d":"20,000.00 kn"}},{"$f":"INDEX(Parametri[],MATCH(Detalji[[#This Row],[VRSTA PROJEKTA]],Parametri[VRSTA PROJEKTA],0),MATCH(Detalji[[#Headers],[BRANITELJ PARNIČAR]],Parametri[#Headers],0))*INDEX('PARAMETRI PROJEKTA'!$B$12:$H$12,1,MATCH(Detalji[[#Headers],[BRANITELJ PARNIČAR]],Parametri[#Headers],0))*Detalji[[#This Row],[PROCIJENJENI RAD]]","v":{"v":0,"d":"0.00 kn"}},{"$f":"INDEX(Parametri[],MATCH(Detalji[[#This Row],[VRSTA PROJEKTA]],Parametri[VRSTA PROJEKTA],0),MATCH(Detalji[[#Headers],[PRAVNIK ZA INTELEKTUALNO VLASNIŠTVO]],Parametri[#Headers],0))*INDEX('PARAMETRI PROJEKTA'!$B$12:$H$12,1,MATCH(Detalji[[#Headers],[PRAVNIK ZA INTELEKTUALNO VLASNIŠTVO]],Parametri[#Headers],0))*Detalji[[#This Row],[PROCIJENJENI RAD]]","v":{"v":0,"d":"0.00 kn"}},{"$f":"INDEX(Parametri[],MATCH(Detalji[[#This Row],[VRSTA PROJEKTA]],Parametri[VRSTA PROJEKTA],0),MATCH(Detalji[[#Headers],[PRAVNIK ZA STEČAJEVE]],Parametri[#Headers],0))*INDEX('PARAMETRI PROJEKTA'!$B$12:$H$12,1,MATCH(Detalji[[#Headers],[PRAVNIK ZA STEČAJEVE]],Parametri[#Headers],0))*Detalji[[#This Row],[PROCIJENJENI RAD]]","v":{"v":0,"d":"0.00 kn"}},{"$f":"INDEX(Parametri[],MATCH(Detalji[[#This Row],[VRSTA PROJEKTA]],Parametri[VRSTA PROJEKTA],0),MATCH(Detalji[[#Headers],[ADMINISTRATORI]],Parametri[#Headers],0))*INDEX('PARAMETRI PROJEKTA'!$B$12:$H$12,1,MATCH(Detalji[[#Headers],[ADMINISTRATORI]],Parametri[#Headers],0))*Detalji[[#This Row],[PROCIJENJENI RAD]]","v":{"v":12500,"d":"12,500.00 kn"}},{"$f":"INDEX(Parametri[],MATCH(Detalji[[#This Row],[VRSTA PROJEKTA]],Parametri[VRSTA PROJEKTA],0),MATCH(Detalji[[#Headers],[PARTNER ZA OPĆE PRAVNE POSLOVE]],Parametri[#Headers],0))*INDEX('PARAMETRI PROJEKTA'!$B$12:$H$12,1,MATCH(Detalji[[#Headers],[PARTNER ZA OPĆE PRAVNE POSLOVE]],Parametri[#Headers],0))*Detalji[[#This Row],[STVARNI RAD]]","v":{"v":7700,"d":"7,700.00 kn"}},{"$f":"INDEX(Parametri[],MATCH(Detalji[[#This Row],[VRSTA PROJEKTA]],Parametri[VRSTA PROJEKTA],0),MATCH(Detalji[[#Headers],[PRAVNIK ZA KORPORATIVNO PRAVO]],Parametri[#Headers],0))*INDEX('PARAMETRI PROJEKTA'!$B$12:$H$12,1,MATCH(Detalji[[#Headers],[PRAVNIK ZA KORPORATIVNO PRAVO]],Parametri[#Headers],0))*Detalji[[#This Row],[STVARNI RAD]]","v":{"v":22000,"d":"22,000.00 kn"}},{"$f":"INDEX(Parametri[],MATCH(Detalji[[#This Row],[VRSTA PROJEKTA]],Parametri[VRSTA PROJEKTA],0),MATCH(Detalji[[#Headers],[BRANITELJ PARNIČAR]],Parametri[#Headers],0))*INDEX('PARAMETRI PROJEKTA'!$B$12:$H$12,1,MATCH(Detalji[[#Headers],[BRANITELJ PARNIČAR]],Parametri[#Headers],0))*Detalji[[#This Row],[STVARNI RAD]]","v":{"v":0,"d":"0.00 kn"}},{"$f":"INDEX(Parametri[],MATCH(Detalji[[#This Row],[VRSTA PROJEKTA]],Parametri[VRSTA PROJEKTA],0),MATCH(Detalji[[#Headers],[PRAVNIK ZA INTELEKTUALNO VLASNIŠTVO]],Parametri[#Headers],0))*INDEX('PARAMETRI PROJEKTA'!$B$12:$H$12,1,MATCH(Detalji[[#Headers],[PRAVNIK ZA INTELEKTUALNO VLASNIŠTVO]],Parametri[#Headers],0))*Detalji[[#This Row],[STVARNI RAD]]","v":{"v":0,"d":"0.00 kn"}},{"$f":"INDEX(Parametri[],MATCH(Detalji[[#This Row],[VRSTA PROJEKTA]],Parametri[VRSTA PROJEKTA],0),MATCH(Detalji[[#Headers],[PRAVNIK ZA STEČAJEVE]],Parametri[#Headers],0))*INDEX('PARAMETRI PROJEKTA'!$B$12:$H$12,1,MATCH(Detalji[[#Headers],[PRAVNIK ZA STEČAJEVE]],Parametri[#Headers],0))*Detalji[[#This Row],[STVARNI RAD]]","v":{"v":0,"d":"0.00 kn"}},{"$f":"INDEX(Parametri[],MATCH(Detalji[[#This Row],[VRSTA PROJEKTA]],Parametri[VRSTA PROJEKTA],0),MATCH(Detalji[[#Headers],[ADMINISTRATORI]],Parametri[#Headers],0))*INDEX('PARAMETRI PROJEKTA'!$B$12:$H$12,1,MATCH(Detalji[[#Headers],[ADMINISTRATORI]],Parametri[#Headers],0))*Detalji[[#This Row],[STVARNI RAD]]","v":{"v":13750,"d":"13,750.00 kn"}}]
[null,"Projekt 2","Preuzimanje tvrtke",{"$f":"TODAY()+30","v":"2019-03-21"},{"$f":"TODAY()+100","v":"2019-05-30"},{"$f":"TODAY()+40","v":"2019-03-31"},{"$f":"TODAY()+110","v":"2019-06-09"},400,390,{"$f":"DAYS360(Detalji[[#This Row],[PROCIJENJENI POČETAK]],Detalji[[#This Row],[PROCIJENJENI ZAVRŠETAK]],FALSE)","v":69},{"$f":"DAYS360(Detalji[[#This Row],[STVARNI POČETAK]],Detalji[[#This Row],[STVARNI ZAVRŠETAK]],FALSE)","v":69},{"$f":"INDEX(Parametri[],MATCH(Detalji[[#This Row],[VRSTA PROJEKTA]],Parametri[VRSTA PROJEKTA],0),MATCH(Detalji[[#Headers],[PARTNER ZA OPĆE PRAVNE POSLOVE]],Parametri[#Headers],0))*INDEX('PARAMETRI PROJEKTA'!$B$12:$H$12,1,MATCH(Detalji[[#Headers],[PARTNER ZA OPĆE PRAVNE POSLOVE]],Parametri[#Headers],0))*Detalji[[#This Row],[PROCIJENJENI RAD]]","v":{"v":14000,"d":"14,000.00 kn"}},{"$f":"INDEX(Parametri[],MATCH(Detalji[[#This Row],[VRSTA PROJEKTA]],Parametri[VRSTA PROJEKTA],0),MATCH(Detalji[[#Headers],[PRAVNIK ZA KORPORATIVNO PRAVO]],Parametri[#Headers],0))*INDEX('PARAMETRI PROJEKTA'!$B$12:$H$12,1,MATCH(Detalji[[#Headers],[PRAVNIK ZA KORPORATIVNO PRAVO]],Parametri[#Headers],0))*Detalji[[#This Row],[PROCIJENJENI RAD]]","v":{"v":40000,"d":"40,000.00 kn"}},{"$f":"INDEX(Parametri[],MATCH(Detalji[[#This Row],[VRSTA PROJEKTA]],Parametri[VRSTA PROJEKTA],0),MATCH(Detalji[[#Headers],[BRANITELJ PARNIČAR]],Parametri[#Headers],0))*INDEX('PARAMETRI PROJEKTA'!$B$12:$H$12,1,MATCH(Detalji[[#Headers],[BRANITELJ PARNIČAR]],Parametri[#Headers],0))*Detalji[[#This Row],[PROCIJENJENI RAD]]","v":{"v":0,"d":"0.00 kn"}},{"$f":"INDEX(Parametri[],MATCH(Detalji[[#This Row],[VRSTA PROJEKTA]],Parametri[VRSTA PROJEKTA],0),MATCH(Detalji[[#Headers],[PRAVNIK ZA INTELEKTUALNO VLASNIŠTVO]],Parametri[#Headers],0))*INDEX('PARAMETRI PROJEKTA'!$B$12:$H$12,1,MATCH(Detalji[[#Headers],[PRAVNIK ZA INTELEKTUALNO VLASNIŠTVO]],Parametri[#Headers],0))*Detalji[[#This Row],[PROCIJENJENI RAD]]","v":{"v":11000,"d":"11,000.00 kn"}},{"$f":"INDEX(Parametri[],MATCH(Detalji[[#This Row],[VRSTA PROJEKTA]],Parametri[VRSTA PROJEKTA],0),MATCH(Detalji[[#Headers],[PRAVNIK ZA STEČAJEVE]],Parametri[#Headers],0))*INDEX('PARAMETRI PROJEKTA'!$B$12:$H$12,1,MATCH(Detalji[[#Headers],[PRAVNIK ZA STEČAJEVE]],Parametri[#Headers],0))*Detalji[[#This Row],[PROCIJENJENI RAD]]","v":{"v":0,"d":"0.00 kn"}},{"$f":"INDEX(Parametri[],MATCH(Detalji[[#This Row],[VRSTA PROJEKTA]],Parametri[VRSTA PROJEKTA],0),MATCH(Detalji[[#Headers],[ADMINISTRATORI]],Parametri[#Headers],0))*INDEX('PARAMETRI PROJEKTA'!$B$12:$H$12,1,MATCH(Detalji[[#Headers],[ADMINISTRATORI]],Parametri[#Headers],0))*Detalji[[#This Row],[PROCIJENJENI RAD]]","v":{"v":20000,"d":"20,000.00 kn"}},{"$f":"INDEX(Parametri[],MATCH(Detalji[[#This Row],[VRSTA PROJEKTA]],Parametri[VRSTA PROJEKTA],0),MATCH(Detalji[[#Headers],[PARTNER ZA OPĆE PRAVNE POSLOVE]],Parametri[#Headers],0))*INDEX('PARAMETRI PROJEKTA'!$B$12:$H$12,1,MATCH(Detalji[[#Headers],[PARTNER ZA OPĆE PRAVNE POSLOVE]],Parametri[#Headers],0))*Detalji[[#This Row],[STVARNI RAD]]","v":{"v":13650,"d":"13,650.00 kn"}},{"$f":"INDEX(Parametri[],MATCH(Detalji[[#This Row],[VRSTA PROJEKTA]],Parametri[VRSTA PROJEKTA],0),MATCH(Detalji[[#Headers],[PRAVNIK ZA KORPORATIVNO PRAVO]],Parametri[#Headers],0))*INDEX('PARAMETRI PROJEKTA'!$B$12:$H$12,1,MATCH(Detalji[[#Headers],[PRAVNIK ZA KORPORATIVNO PRAVO]],Parametri[#Headers],0))*Detalji[[#This Row],[STVARNI RAD]]","v":{"v":39000,"d":"39,000.00 kn"}},{"$f":"INDEX(Parametri[],MATCH(Detalji[[#This Row],[VRSTA PROJEKTA]],Parametri[VRSTA PROJEKTA],0),MATCH(Detalji[[#Headers],[BRANITELJ PARNIČAR]],Parametri[#Headers],0))*INDEX('PARAMETRI PROJEKTA'!$B$12:$H$12,1,MATCH(Detalji[[#Headers],[BRANITELJ PARNIČAR]],Parametri[#Headers],0))*Detalji[[#This Row],[STVARNI RAD]]","v":{"v":0,"d":"0.00 kn"}},{"$f":"INDEX(Parametri[],MATCH(Detalji[[#This Row],[VRSTA PROJEKTA]],Parametri[VRSTA PROJEKTA],0),MATCH(Detalji[[#Headers],[PRAVNIK ZA INTELEKTUALNO VLASNIŠTVO]],Parametri[#Headers],0))*INDEX('PARAMETRI PROJEKTA'!$B$12:$H$12,1,MATCH(Detalji[[#Headers],[PRAVNIK ZA INTELEKTUALNO VLASNIŠTVO]],Parametri[#Headers],0))*Detalji[[#This Row],[STVARNI RAD]]","v":{"v":10725,"d":"10,725.00 kn"}},{"$f":"INDEX(Parametri[],MATCH(Detalji[[#This Row],[VRSTA PROJEKTA]],Parametri[VRSTA PROJEKTA],0),MATCH(Detalji[[#Headers],[PRAVNIK ZA STEČAJEVE]],Parametri[#Headers],0))*INDEX('PARAMETRI PROJEKTA'!$B$12:$H$12,1,MATCH(Detalji[[#Headers],[PRAVNIK ZA STEČAJEVE]],Parametri[#Headers],0))*Detalji[[#This Row],[STVARNI RAD]]","v":{"v":0,"d":"0.00 kn"}},{"$f":"INDEX(Parametri[],MATCH(Detalji[[#This Row],[VRSTA PROJEKTA]],Parametri[VRSTA PROJEKTA],0),MATCH(Detalji[[#Headers],[ADMINISTRATORI]],Parametri[#Headers],0))*INDEX('PARAMETRI PROJEKTA'!$B$12:$H$12,1,MATCH(Detalji[[#Headers],[ADMINISTRATORI]],Parametri[#Headers],0))*Detalji[[#This Row],[STVARNI RAD]]","v":{"v":19500,"d":"19,500.00 kn"}}]
[null,"Projekt 3","Obrana od odgovornosti za proizvod",{"$f":"TODAY()+150","v":"2019-07-19"},{"$f":"TODAY()+150","v":"2019-07-19"},{"$f":"TODAY()+150","v":"2019-07-19"},{"$f":"TODAY()+170","v":"2019-08-08"},500,500,{"$f":"DAYS360(Detalji[[#This Row],[PROCIJENJENI POČETAK]],Detalji[[#This Row],[PROCIJENJENI ZAVRŠETAK]],FALSE)","v":0},{"$f":"DAYS360(Detalji[[#This Row],[STVARNI POČETAK]],Detalji[[#This Row],[STVARNI ZAVRŠETAK]],FALSE)","v":19},{"$f":"INDEX(Parametri[],MATCH(Detalji[[#This Row],[VRSTA PROJEKTA]],Parametri[VRSTA PROJEKTA],0),MATCH(Detalji[[#Headers],[PARTNER ZA OPĆE PRAVNE POSLOVE]],Parametri[#Headers],0))*INDEX('PARAMETRI PROJEKTA'!$B$12:$H$12,1,MATCH(Detalji[[#Headers],[PARTNER ZA OPĆE PRAVNE POSLOVE]],Parametri[#Headers],0))*Detalji[[#This Row],[PROCIJENJENI RAD]]","v":{"v":35000,"d":"35,000.00 kn"}},{"$f":"INDEX(Parametri[],MATCH(Detalji[[#This Row],[VRSTA PROJEKTA]],Parametri[VRSTA PROJEKTA],0),MATCH(Detalji[[#Headers],[PRAVNIK ZA KORPORATIVNO PRAVO]],Parametri[#Headers],0))*INDEX('PARAMETRI PROJEKTA'!$B$12:$H$12,1,MATCH(Detalji[[#Headers],[PRAVNIK ZA KORPORATIVNO PRAVO]],Parametri[#Headers],0))*Detalji[[#This Row],[PROCIJENJENI RAD]]","v":{"v":0,"d":"0.00 kn"}},{"$f":"INDEX(Parametri[],MATCH(Detalji[[#This Row],[VRSTA PROJEKTA]],Parametri[VRSTA PROJEKTA],0),MATCH(Detalji[[#Headers],[BRANITELJ PARNIČAR]],Parametri[#Headers],0))*INDEX('PARAMETRI PROJEKTA'!$B$12:$H$12,1,MATCH(Detalji[[#Headers],[BRANITELJ PARNIČAR]],Parametri[#Headers],0))*Detalji[[#This Row],[PROCIJENJENI RAD]]","v":{"v":75000,"d":"75,000.00 kn"}},{"$f":"INDEX(Parametri[],MATCH(Detalji[[#This Row],[VRSTA PROJEKTA]],Parametri[VRSTA PROJEKTA],0),MATCH(Detalji[[#Headers],[PRAVNIK ZA INTELEKTUALNO VLASNIŠTVO]],Parametri[#Headers],0))*INDEX('PARAMETRI PROJEKTA'!$B$12:$H$12,1,MATCH(Detalji[[#Headers],[PRAVNIK ZA INTELEKTUALNO VLASNIŠTVO]],Parametri[#Headers],0))*Detalji[[#This Row],[PROCIJENJENI RAD]]","v":{"v":0,"d":"0.00 kn"}},{"$f":"INDEX(Parametri[],MATCH(Detalji[[#This Row],[VRSTA PROJEKTA]],Parametri[VRSTA PROJEKTA],0),MATCH(Detalji[[#Headers],[PRAVNIK ZA STEČAJEVE]],Parametri[#Headers],0))*INDEX('PARAMETRI PROJEKTA'!$B$12:$H$12,1,MATCH(Detalji[[#Headers],[PRAVNIK ZA STEČAJEVE]],Parametri[#Headers],0))*Detalji[[#This Row],[PROCIJENJENI RAD]]","v":{"v":0,"d":"0.00 kn"}},{"$f":"INDEX(Parametri[],MATCH(Detalji[[#This Row],[VRSTA PROJEKTA]],Parametri[VRSTA PROJEKTA],0),MATCH(Detalji[[#Headers],[ADMINISTRATORI]],Parametri[#Headers],0))*INDEX('PARAMETRI PROJEKTA'!$B$12:$H$12,1,MATCH(Detalji[[#Headers],[ADMINISTRATORI]],Parametri[#Headers],0))*Detalji[[#This Row],[PROCIJENJENI RAD]]","v":{"v":18750,"d":"18,750.00 kn"}},{"$f":"INDEX(Parametri[],MATCH(Detalji[[#This Row],[VRSTA PROJEKTA]],Parametri[VRSTA PROJEKTA],0),MATCH(Detalji[[#Headers],[PARTNER ZA OPĆE PRAVNE POSLOVE]],Parametri[#Headers],0))*INDEX('PARAMETRI PROJEKTA'!$B$12:$H$12,1,MATCH(Detalji[[#Headers],[PARTNER ZA OPĆE PRAVNE POSLOVE]],Parametri[#Headers],0))*Detalji[[#This Row],[STVARNI RAD]]","v":{"v":35000,"d":"35,000.00 kn"}},{"$f":"INDEX(Parametri[],MATCH(Detalji[[#This Row],[VRSTA PROJEKTA]],Parametri[VRSTA PROJEKTA],0),MATCH(Detalji[[#Headers],[PRAVNIK ZA KORPORATIVNO PRAVO]],Parametri[#Headers],0))*INDEX('PARAMETRI PROJEKTA'!$B$12:$H$12,1,MATCH(Detalji[[#Headers],[PRAVNIK ZA KORPORATIVNO PRAVO]],Parametri[#Headers],0))*Detalji[[#This Row],[STVARNI RAD]]","v":{"v":0,"d":"0.00 kn"}},{"$f":"INDEX(Parametri[],MATCH(Detalji[[#This Row],[VRSTA PROJEKTA]],Parametri[VRSTA PROJEKTA],0),MATCH(Detalji[[#Headers],[BRANITELJ PARNIČAR]],Parametri[#Headers],0))*INDEX('PARAMETRI PROJEKTA'!$B$12:$H$12,1,MATCH(Detalji[[#Headers],[BRANITELJ PARNIČAR]],Parametri[#Headers],0))*Detalji[[#This Row],[STVARNI RAD]]","v":{"v":75000,"d":"75,000.00 kn"}},{"$f":"INDEX(Parametri[],MATCH(Detalji[[#This Row],[VRSTA PROJEKTA]],Parametri[VRSTA PROJEKTA],0),MATCH(Detalji[[#Headers],[PRAVNIK ZA INTELEKTUALNO VLASNIŠTVO]],Parametri[#Headers],0))*INDEX('PARAMETRI PROJEKTA'!$B$12:$H$12,1,MATCH(Detalji[[#Headers],[PRAVNIK ZA INTELEKTUALNO VLASNIŠTVO]],Parametri[#Headers],0))*Detalji[[#This Row],[STVARNI RAD]]","v":{"v":0,"d":"0.00 kn"}},{"$f":"INDEX(Parametri[],MATCH(Detalji[[#This Row],[VRSTA PROJEKTA]],Parametri[VRSTA PROJEKTA],0),MATCH(Detalji[[#Headers],[PRAVNIK ZA STEČAJEVE]],Parametri[#Headers],0))*INDEX('PARAMETRI PROJEKTA'!$B$12:$H$12,1,MATCH(Detalji[[#Headers],[PRAVNIK ZA STEČAJEVE]],Parametri[#Headers],0))*Detalji[[#This Row],[STVARNI RAD]]","v":{"v":0,"d":"0.00 kn"}},{"$f":"INDEX(Parametri[],MATCH(Detalji[[#This Row],[VRSTA PROJEKTA]],Parametri[VRSTA PROJEKTA],0),MATCH(Detalji[[#Headers],[ADMINISTRATORI]],Parametri[#Headers],0))*INDEX('PARAMETRI PROJEKTA'!$B$12:$H$12,1,MATCH(Detalji[[#Headers],[ADMINISTRATORI]],Parametri[#Headers],0))*Detalji[[#This Row],[STVARNI RAD]]","v":{"v":18750,"d":"18,750.00 kn"}}]
[null,"Projekt 4","Prijava patenta",{"$f":"TODAY()+200","v":"2019-09-07"},{"$f":"TODAY()+230","v":"2019-10-07"},{"$f":"TODAY()+230","v":"2019-10-07"},{"$f":"TODAY()+230","v":"2019-10-07"},150,145,{"$f":"DAYS360(Detalji[[#This Row],[PROCIJENJENI POČETAK]],Detalji[[#This Row],[PROCIJENJENI ZAVRŠETAK]],FALSE)","v":30},{"$f":"DAYS360(Detalji[[#This Row],[STVARNI POČETAK]],Detalji[[#This Row],[STVARNI ZAVRŠETAK]],FALSE)","v":0},{"$f":"INDEX(Parametri[],MATCH(Detalji[[#This Row],[VRSTA PROJEKTA]],Parametri[VRSTA PROJEKTA],0),MATCH(Detalji[[#Headers],[PARTNER ZA OPĆE PRAVNE POSLOVE]],Parametri[#Headers],0))*INDEX('PARAMETRI PROJEKTA'!$B$12:$H$12,1,MATCH(Detalji[[#Headers],[PARTNER ZA OPĆE PRAVNE POSLOVE]],Parametri[#Headers],0))*Detalji[[#This Row],[PROCIJENJENI RAD]]","v":{"v":5250,"d":"5,250.00 kn"}},{"$f":"INDEX(Parametri[],MATCH(Detalji[[#This Row],[VRSTA PROJEKTA]],Parametri[VRSTA PROJEKTA],0),MATCH(Detalji[[#Headers],[PRAVNIK ZA KORPORATIVNO PRAVO]],Parametri[#Headers],0))*INDEX('PARAMETRI PROJEKTA'!$B$12:$H$12,1,MATCH(Detalji[[#Headers],[PRAVNIK ZA KORPORATIVNO PRAVO]],Parametri[#Headers],0))*Detalji[[#This Row],[PROCIJENJENI RAD]]","v":{"v":0,"d":"0.00 kn"}},{"$f":"INDEX(Parametri[],MATCH(Detalji[[#This Row],[VRSTA PROJEKTA]],Parametri[VRSTA PROJEKTA],0),MATCH(Detalji[[#Headers],[BRANITELJ PARNIČAR]],Parametri[#Headers],0))*INDEX('PARAMETRI PROJEKTA'!$B$12:$H$12,1,MATCH(Detalji[[#Headers],[BRANITELJ PARNIČAR]],Parametri[#Headers],0))*Detalji[[#This Row],[PROCIJENJENI RAD]]","v":{"v":0,"d":"0.00 kn"}},{"$f":"INDEX(Parametri[],MATCH(Detalji[[#This Row],[VRSTA PROJEKTA]],Parametri[VRSTA PROJEKTA],0),MATCH(Detalji[[#Headers],[PRAVNIK ZA INTELEKTUALNO VLASNIŠTVO]],Parametri[#Headers],0))*INDEX('PARAMETRI PROJEKTA'!$B$12:$H$12,1,MATCH(Detalji[[#Headers],[PRAVNIK ZA INTELEKTUALNO VLASNIŠTVO]],Parametri[#Headers],0))*Detalji[[#This Row],[PROCIJENJENI RAD]]","v":{"v":24750,"d":"24,750.00 kn"}},{"$f":"INDEX(Parametri[],MATCH(Detalji[[#This Row],[VRSTA PROJEKTA]],Parametri[VRSTA PROJEKTA],0),MATCH(Detalji[[#Headers],[PRAVNIK ZA STEČAJEVE]],Parametri[#Headers],0))*INDEX('PARAMETRI PROJEKTA'!$B$12:$H$12,1,MATCH(Detalji[[#Headers],[PRAVNIK ZA STEČAJEVE]],Parametri[#Headers],0))*Detalji[[#This Row],[PROCIJENJENI RAD]]","v":{"v":0,"d":"0.00 kn"}},{"$f":"INDEX(Parametri[],MATCH(Detalji[[#This Row],[VRSTA PROJEKTA]],Parametri[VRSTA PROJEKTA],0),MATCH(Detalji[[#Headers],[ADMINISTRATORI]],Parametri[#Headers],0))*INDEX('PARAMETRI PROJEKTA'!$B$12:$H$12,1,MATCH(Detalji[[#Headers],[ADMINISTRATORI]],Parametri[#Headers],0))*Detalji[[#This Row],[PROCIJENJENI RAD]]","v":{"v":5625,"d":"5,625.00 kn"}},{"$f":"INDEX(Parametri[],MATCH(Detalji[[#This Row],[VRSTA PROJEKTA]],Parametri[VRSTA PROJEKTA],0),MATCH(Detalji[[#Headers],[PARTNER ZA OPĆE PRAVNE POSLOVE]],Parametri[#Headers],0))*INDEX('PARAMETRI PROJEKTA'!$B$12:$H$12,1,MATCH(Detalji[[#Headers],[PARTNER ZA OPĆE PRAVNE POSLOVE]],Parametri[#Headers],0))*Detalji[[#This Row],[STVARNI RAD]]","v":{"v":5075,"d":"5,075.00 kn"}},{"$f":"INDEX(Parametri[],MATCH(Detalji[[#This Row],[VRSTA PROJEKTA]],Parametri[VRSTA PROJEKTA],0),MATCH(Detalji[[#Headers],[PRAVNIK ZA KORPORATIVNO PRAVO]],Parametri[#Headers],0))*INDEX('PARAMETRI PROJEKTA'!$B$12:$H$12,1,MATCH(Detalji[[#Headers],[PRAVNIK ZA KORPORATIVNO PRAVO]],Parametri[#Headers],0))*Detalji[[#This Row],[STVARNI RAD]]","v":{"v":0,"d":"0.00 kn"}},{"$f":"INDEX(Parametri[],MATCH(Detalji[[#This Row],[VRSTA PROJEKTA]],Parametri[VRSTA PROJEKTA],0),MATCH(Detalji[[#Headers],[BRANITELJ PARNIČAR]],Parametri[#Headers],0))*INDEX('PARAMETRI PROJEKTA'!$B$12:$H$12,1,MATCH(Detalji[[#Headers],[BRANITELJ PARNIČAR]],Parametri[#Headers],0))*Detalji[[#This Row],[STVARNI RAD]]","v":{"v":0,"d":"0.00 kn"}},{"$f":"INDEX(Parametri[],MATCH(Detalji[[#This Row],[VRSTA PROJEKTA]],Parametri[VRSTA PROJEKTA],0),MATCH(Detalji[[#Headers],[PRAVNIK ZA INTELEKTUALNO VLASNIŠTVO]],Parametri[#Headers],0))*INDEX('PARAMETRI PROJEKTA'!$B$12:$H$12,1,MATCH(Detalji[[#Headers],[PRAVNIK ZA INTELEKTUALNO VLASNIŠTVO]],Parametri[#Headers],0))*Detalji[[#This Row],[STVARNI RAD]]","v":{"v":23925,"d":"23,925.00 kn"}},{"$f":"INDEX(Parametri[],MATCH(Detalji[[#This Row],[VRSTA PROJEKTA]],Parametri[VRSTA PROJEKTA],0),MATCH(Detalji[[#Headers],[PRAVNIK ZA STEČAJEVE]],Parametri[#Headers],0))*INDEX('PARAMETRI PROJEKTA'!$B$12:$H$12,1,MATCH(Detalji[[#Headers],[PRAVNIK ZA STEČAJEVE]],Parametri[#Headers],0))*Detalji[[#This Row],[STVARNI RAD]]","v":{"v":0,"d":"0.00 kn"}},{"$f":"INDEX(Parametri[],MATCH(Detalji[[#This Row],[VRSTA PROJEKTA]],Parametri[VRSTA PROJEKTA],0),MATCH(Detalji[[#Headers],[ADMINISTRATORI]],Parametri[#Headers],0))*INDEX('PARAMETRI PROJEKTA'!$B$12:$H$12,1,MATCH(Detalji[[#Headers],[ADMINISTRATORI]],Parametri[#Headers],0))*Detalji[[#This Row],[STVARNI RAD]]","v":{"v":5437.5,"d":"5,437.50 kn"}}]
[null,"Projekt 5","Tužba zaposlenika",{"$f":"TODAY()+220","v":"2019-09-27"},{"$f":"TODAY()+250","v":"2019-10-27"},{"$f":"TODAY()+230","v":"2019-10-07"},{"$f":"TODAY()+259","v":"2019-11-05"},250,255,{"$f":"DAYS360(Detalji[[#This Row],[PROCIJENJENI POČETAK]],Detalji[[#This Row],[PROCIJENJENI ZAVRŠETAK]],FALSE)","v":30},{"$f":"DAYS360(Detalji[[#This Row],[STVARNI POČETAK]],Detalji[[#This Row],[STVARNI ZAVRŠETAK]],FALSE)","v":28},{"$f":"INDEX(Parametri[],MATCH(Detalji[[#This Row],[VRSTA PROJEKTA]],Parametri[VRSTA PROJEKTA],0),MATCH(Detalji[[#Headers],[PARTNER ZA OPĆE PRAVNE POSLOVE]],Parametri[#Headers],0))*INDEX('PARAMETRI PROJEKTA'!$B$12:$H$12,1,MATCH(Detalji[[#Headers],[PARTNER ZA OPĆE PRAVNE POSLOVE]],Parametri[#Headers],0))*Detalji[[#This Row],[PROCIJENJENI RAD]]","v":{"v":17500,"d":"17,500.00 kn"}},{"$f":"INDEX(Parametri[],MATCH(Detalji[[#This Row],[VRSTA PROJEKTA]],Parametri[VRSTA PROJEKTA],0),MATCH(Detalji[[#Headers],[PRAVNIK ZA KORPORATIVNO PRAVO]],Parametri[#Headers],0))*INDEX('PARAMETRI PROJEKTA'!$B$12:$H$12,1,MATCH(Detalji[[#Headers],[PRAVNIK ZA KORPORATIVNO PRAVO]],Parametri[#Headers],0))*Detalji[[#This Row],[PROCIJENJENI RAD]]","v":{"v":6250,"d":"6,250.00 kn"}},{"$f":"INDEX(Parametri[],MATCH(Detalji[[#This Row],[VRSTA PROJEKTA]],Parametri[VRSTA PROJEKTA],0),MATCH(Detalji[[#Headers],[BRANITELJ PARNIČAR]],Parametri[#Headers],0))*INDEX('PARAMETRI PROJEKTA'!$B$12:$H$12,1,MATCH(Detalji[[#Headers],[BRANITELJ PARNIČAR]],Parametri[#Headers],0))*Detalji[[#This Row],[PROCIJENJENI RAD]]","v":{"v":30000,"d":"30,000.00 kn"}},{"$f":"INDEX(Parametri[],MATCH(Detalji[[#This Row],[VRSTA PROJEKTA]],Parametri[VRSTA PROJEKTA],0),MATCH(Detalji[[#Headers],[PRAVNIK ZA INTELEKTUALNO VLASNIŠTVO]],Parametri[#Headers],0))*INDEX('PARAMETRI PROJEKTA'!$B$12:$H$12,1,MATCH(Detalji[[#Headers],[PRAVNIK ZA INTELEKTUALNO VLASNIŠTVO]],Parametri[#Headers],0))*Detalji[[#This Row],[PROCIJENJENI RAD]]","v":{"v":0,"d":"0.00 kn"}},{"$f":"INDEX(Parametri[],MATCH(Detalji[[#This Row],[VRSTA PROJEKTA]],Parametri[VRSTA PROJEKTA],0),MATCH(Detalji[[#Headers],[PRAVNIK ZA STEČAJEVE]],Parametri[#Headers],0))*INDEX('PARAMETRI PROJEKTA'!$B$12:$H$12,1,MATCH(Detalji[[#Headers],[PRAVNIK ZA STEČAJEVE]],Parametri[#Headers],0))*Detalji[[#This Row],[PROCIJENJENI RAD]]","v":{"v":0,"d":"0.00 kn"}},{"$f":"INDEX(Parametri[],MATCH(Detalji[[#This Row],[VRSTA PROJEKTA]],Parametri[VRSTA PROJEKTA],0),MATCH(Detalji[[#Headers],[ADMINISTRATORI]],Parametri[#Headers],0))*INDEX('PARAMETRI PROJEKTA'!$B$12:$H$12,1,MATCH(Detalji[[#Headers],[ADMINISTRATORI]],Parametri[#Headers],0))*Detalji[[#This Row],[PROCIJENJENI RAD]]","v":{"v":9375,"d":"9,375.00 kn"}},{"$f":"INDEX(Parametri[],MATCH(Detalji[[#This Row],[VRSTA PROJEKTA]],Parametri[VRSTA PROJEKTA],0),MATCH(Detalji[[#Headers],[PARTNER ZA OPĆE PRAVNE POSLOVE]],Parametri[#Headers],0))*INDEX('PARAMETRI PROJEKTA'!$B$12:$H$12,1,MATCH(Detalji[[#Headers],[PARTNER ZA OPĆE PRAVNE POSLOVE]],Parametri[#Headers],0))*Detalji[[#This Row],[STVARNI RAD]]","v":{"v":17850,"d":"17,850.00 kn"}},{"$f":"INDEX(Parametri[],MATCH(Detalji[[#This Row],[VRSTA PROJEKTA]],Parametri[VRSTA PROJEKTA],0),MATCH(Detalji[[#Headers],[PRAVNIK ZA KORPORATIVNO PRAVO]],Parametri[#Headers],0))*INDEX('PARAMETRI PROJEKTA'!$B$12:$H$12,1,MATCH(Detalji[[#Headers],[PRAVNIK ZA KORPORATIVNO PRAVO]],Parametri[#Headers],0))*Detalji[[#This Row],[STVARNI RAD]]","v":{"v":6375,"d":"6,375.00 kn"}},{"$f":"INDEX(Parametri[],MATCH(Detalji[[#This Row],[VRSTA PROJEKTA]],Parametri[VRSTA PROJEKTA],0),MATCH(Detalji[[#Headers],[BRANITELJ PARNIČAR]],Parametri[#Headers],0))*INDEX('PARAMETRI PROJEKTA'!$B$12:$H$12,1,MATCH(Detalji[[#Headers],[BRANITELJ PARNIČAR]],Parametri[#Headers],0))*Detalji[[#This Row],[STVARNI RAD]]","v":{"v":30600,"d":"30,600.00 kn"}},{"$f":"INDEX(Parametri[],MATCH(Detalji[[#This Row],[VRSTA PROJEKTA]],Parametri[VRSTA PROJEKTA],0),MATCH(Detalji[[#Headers],[PRAVNIK ZA INTELEKTUALNO VLASNIŠTVO]],Parametri[#Headers],0))*INDEX('PARAMETRI PROJEKTA'!$B$12:$H$12,1,MATCH(Detalji[[#Headers],[PRAVNIK ZA INTELEKTUALNO VLASNIŠTVO]],Parametri[#Headers],0))*Detalji[[#This Row],[STVARNI RAD]]","v":{"v":0,"d":"0.00 kn"}},{"$f":"INDEX(Parametri[],MATCH(Detalji[[#This Row],[VRSTA PROJEKTA]],Parametri[VRSTA PROJEKTA],0),MATCH(Detalji[[#Headers],[PRAVNIK ZA STEČAJEVE]],Parametri[#Headers],0))*INDEX('PARAMETRI PROJEKTA'!$B$12:$H$12,1,MATCH(Detalji[[#Headers],[PRAVNIK ZA STEČAJEVE]],Parametri[#Headers],0))*Detalji[[#This Row],[STVARNI RAD]]","v":{"v":0,"d":"0.00 kn"}},{"$f":"INDEX(Parametri[],MATCH(Detalji[[#This Row],[VRSTA PROJEKTA]],Parametri[VRSTA PROJEKTA],0),MATCH(Detalji[[#Headers],[ADMINISTRATORI]],Parametri[#Headers],0))*INDEX('PARAMETRI PROJEKTA'!$B$12:$H$12,1,MATCH(Detalji[[#Headers],[ADMINISTRATORI]],Parametri[#Headers],0))*Detalji[[#This Row],[STVARNI RAD]]","v":{"v":9562.5,"d":"9,562.50 kn"}}]
[null,"Zbroj",{"$nulls":5},{"$f":"SUBTOTAL(109,Detalji[PROCIJENJENI RAD])","v":1500},{"$f":"SUBTOTAL(109,Detalji[STVARNI RAD])","v":1510},{"$f":"SUBTOTAL(109,Detalji[PROCIJENJENO TRAJANJE])","v":190},{"$f":"SUBTOTAL(109,Detalji[STVARNO TRAJANJE])","v":170}]

{"sheet":"UKUPNI ZBROJEVI ZA PROJEKT","index":3,"n_rows":11,"n_cols":16,"rows_kept":11,"merged":[[3,2,3,7],[3,8,3,13],[3,15,14,19]]}
["Dohvatite tablicu Ukupni zbrojevi za projekt na ovom radnom listu. Naziv tvrtke automatski se ažurira u ćeliji zdesna. Korisne upute nalaze se u ćelijama u tom stupcu. Pomoću tipke sa strelicom prema dolje počnite s radom.",{"$f":"'PARAMETRI PROJEKTA'!B1","v":"Naziv tvrtke"}]
["U ćeliji zdesna nalazi se naslov ovog radnog lista.",{"$f":"'PARAMETRI PROJEKTA'!B2","v":"Planiranje projekata za odvjetničke urede"}]
["Poruka o povjerljivosti podataka nalazi se u ćeliji s desne strane.",{"$f":"'PARAMETRI PROJEKTA'!B3","v":"Naziv tvrtke – povjerljivo"}]
["Natpis Procijenjeno nalazi se u ćeliji C4, natpis Stvarno u ćeliji I4, a savjet s informacijama u ćeliji P4.",null,"PROCIJENJENO",{"$nulls":5},"STVARNO",{"$nulls":6},"INFORMACIJE: \nTa se zaokretna tablica neće automatski osvježavati.  Da biste je osvježili, odaberite je (odaberite bilo koju ćeliju u zaokretnoj tablici) pa na kartici vrpce ALATI ZAOKRETNE TABLICE | ANALIZA odaberite Osvježi.  Ili, odabravši zaokretnu tablicu, pritisnite SHIFT + F10 pa odaberite Osvježi."]
["Zaokretna tablica koja počinje u ćeliji s desne strane ažurira se automatski","NAZIV PROJEKTA","PARTNER ZA OPĆE PRAVNE POSLOVE ","KORPORATIVNO PRAVO ","BRANITELJ PARNIČAR ","INTELEKTUALNOG VLASNIŠTVO ","STEČAJ ","ADMINISTRATORI ","PARTNER ZA OPĆE PRAVNE POSLOVE  ","KORPORATIVNO PRAVO","BRANITELJ PARNIČAR  ","STEČAJ","INTELEKTUALNOG VLASNIŠTVO","ADMINISTRATORI  "]
[null,"Projekt 1",{"v":7000,"d":"7,000.00 kn"},{"v":20000,"d":"20,000.00 kn"},{"v":0,"d":"0.00 kn"},{"v":0,"d":"0.00 kn"},{"v":0,"d":"0.00 kn"},{"v":12500,"d":"12,500.00 kn"},{"v":7700,"d":"7,700.00 kn"},{"v":22000,"d":"22,000.00 kn"},{"v":0,"d":"0.00 kn"},{"v":0,"d":"0.00 kn"},{"v":0,"d":"0.00 kn"},{"v":13750,"d":"13,750.00 kn"}]
[null,"Projekt 2",{"v":14000,"d":"14,000.00 kn"},{"v":40000,"d":"40,000.00 kn"},{"v":0,"d":"0.00 kn"},{"v":11000,"d":"11,000.00 kn"},{"v":0,"d":"0.00 kn"},{"v":20000,"d":"20,000.00 kn"},{"v":13650,"d":"13,650.00 kn"},{"v":39000,"d":"39,000.00 kn"},{"v":0,"d":"0.00 kn"},{"v":10725,"d":"10,725.00 kn"},{"v":0,"d":"0.00 kn"},{"v":19500,"d":"19,500.00 kn"}]
[null,"Projekt 3",{"v":35000,"d":"35,000.00 kn"},{"v":0,"d":"0.00 kn"},{"v":75000,"d":"75,000.00 kn"},{"v":0,"d":"0.00 kn"},{"v":0,"d":"0.00 kn"},{"v":18750,"d":"18,750.00 kn"},{"v":35000,"d":"35,000.00 kn"},{"v":0,"d":"0.00 kn"},{"v":75000,"d":"75,000.00 kn"},{"v":0,"d":"0.00 kn"},{"v":0,"d":"0.00 kn"},{"v":18750,"d":"18,750.00 kn"}]
[null,"Projekt 4",{"v":5250,"d":"5,250.00 kn"},{"v":0,"d":"0.00 kn"},{"v":0,"d":"0.00 kn"},{"v":24750,"d":"24,750.00 kn"},{"v":0,"d":"0.00 kn"},{"v":5625,"d":"5,625.00 kn"},{"v":5075,"d":"5,075.00 kn"},{"v":0,"d":"0.00 kn"},{"v":0,"d":"0.00 kn"},{"v":23925,"d":"23,925.00 kn"},{"v":0,"d":"0.00 kn"},{"v":5437.5,"d":"5,437.50 kn"}]
[null,"Projekt 5",{"v":17500,"d":"17,500.00 kn"},{"v":6250,"d":"6,250.00 kn"},{"v":30000,"d":"30,000.00 kn"},{"v":0,"d":"0.00 kn"},{"v":0,"d":"0.00 kn"},{"v":9375,"d":"9,375.00 kn"},{"v":17850,"d":"17,850.00 kn"},{"v":6375,"d":"6,375.00 kn"},{"v":30600,"d":"30,600.00 kn"},{"v":0,"d":"0.00 kn"},{"v":0,"d":"0.00 kn"},{"v":9562.5,"d":"9,562.50 kn"}]
[null,"Ukupni zbroj",{"v":78750,"d":"78,750.00 kn"},{"v":66250,"d":"66,250.00 kn"},{"v":105000,"d":"105,000.00 kn"},{"v":35750,"d":"35,750.00 kn"},{"v":0,"d":"0.00 kn"},{"v":66250,"d":"66,250.00 kn"},{"v":79275,"d":"79,275.00 kn"},{"v":67375,"d":"67,375.00 kn"},{"v":105600,"d":"105,600.00 kn"},{"v":34650,"d":"34,650.00 kn"},{"v":0,"d":"0.00 kn"},{"v":67000,"d":"67,000.00 kn"}]